[Event "9th Porticcio Open 2024"]
[Site "Porticcio"]
[Date "2024.07.01"]
[Round "3.2"]
[White "Bailet, Pierre"]
[Black "Anwesh, Upadhyaya"]
[Result "1-0"]
[ECO "C84"]
[WhiteElo "2491"]
[BlackElo "2354"]
[Annotator "TA"]
[PlyCount "71"]
[EventDate "2024.07.01"]
[EventType "swiss"]
[EventCountry "FRA"]
[SourceTitle "playchess.com"]
[Source "ChessBase"]
[SourceQuality "1"]
[TimeControl "5400+30"]

{[%evp 18,71,0,0,0,0,9,10,26,27,19,19,17,25,18,14,20,0,9,0,0,-19,0,0,0,0,0,0,27,8,8,8,8,8,12,32,71,7,96,112,107,93,709,752,750,729,6415,6419,6383,5406,5514,1010,972,0,947,925]} 1. e4 e5 2. Nf3 Nc6 3. Bb5 a6 4. Ba4 Nf6 5. O-O Be7 6. d3 b5 7. Bb3 O-O 8. a3 {[%cal Ba2a3,Ba3a4][%mdl 32]} d6 9. Nc3 Bg4 10. Be3 Nd4 11. Bxd4 exd4 12. Nd5 c5 {The position is equal.} 13. a4 Be6 14. Nxe7+ Qxe7 15. Bxe6 Qxe6 {[#]} 16. b4 $1 Nd7 17. bxc5 dxc5 18. Ng5 Qc6 19. f4 h6 20. Nf3 Rfe8 21. Nh4 bxa4 22. Nf5 Kh7 23. e5 {[%mdl 1024] White has compensation.} f6 24. Qg4 {[%csl Gf5][%cal Rg4g7]} g6 25. Nd6 Re7 {[%cal Be8e7,Be7g7,Bg7g6,Bg6f6][%mdl 32]} 26. Qh4 $40 {[%mdl 128] Strongly threatening Rf3. White mounts an attack.} Rf8 27. Rae1 {White is more active.} (27. Rf3 $16) 27... g5 (27... a3 $6 28. Ne4 Kg7 29. Nxf6 $16) (27... Re6 $1 $11 {remains equal.}) 28. Qh5 $16 ({Much less strong is} 28. fxg5 fxg5 29. Qh5 Nxe5 (29... Rxe5 $2 {loses.} 30. Rf7+ Rxf7 31. Qxf7+ Kh8 32. Rxe5 $18) (29... Rxf1+ $2 30. Rxf1 Rg7 31. Qe8 $18) 30. Rxf8 Qxd6 $16) 28... fxe5 29. fxe5 Rxf1+ {[%mdl 8192]} (29... Nxe5 $16 30. Rxf8 Qxd6) 30. Rxf1 $18 {[%cal Be1f1,Bf1f7,Bf7d7,Bd7g7][%mdl 32] White wants to mate with Rf7+.} Rg7 31. Ne8 Rg6 {Prevents Rf6.} 32. Rf7+ Kg8 {[#]} 33. Rxd7 $1 {[%mdl 512]} a3 (33... c4 34. Rd8) 34. Nf6+ (34. Re7 $142 Kf8 35. Nd6 Kxe7 36. Qxg6) 34... Rxf6 35. Qe8+ Rf8 {[#]} 36. Rg7+ $3 {[%mdl 512] Weighted Error Value: White=0.09 (flawless) /Black=0.15 (very precise) .  Loses game:     	---       	Black=1      Mistake:       	White=1     	Black=1      Inaccurate:     	---       	Black=1      OK:         	White=11    	Black=5      Best:        	White=1     	Black=1} 1-0

[Event "9th Porticcio Open 2024"]
[Site "Porticcio"]
[Date "2024.07.01"]
[Round "3.3"]
[White "Druska, Juraj"]
[Black "Kavutskiy, Konstantin"]
[Result "1-0"]
[ECO "E71"]
[WhiteElo "2466"]
[BlackElo "2345"]
[Annotator "TA"]
[PlyCount "65"]
[EventDate "2024.07.01"]
[EventType "swiss"]
[EventCountry "FRA"]
[SourceTitle "playchess.com"]
[Source "ChessBase"]
[SourceQuality "1"]
[TimeControl "5400+30"]

{[%evp 10,65,36,32,47,31,37,52,31,41,67,65,52,51,36,34,70,62,70,71,73,67,70,73,92,50,81,76,92,104,84,86,85,91,157,105,247,229,337,224,258,230,433,418,433,422,422,362,362,369,383,377,377,364,828,802,889,888]} 1. d4 {[%emt 0:00:08]} Nf6 {[%emt 0:04:46]} 2. c4 {[%emt 0:00:12]} g6 {[%emt 0:00:04]} 3. Nc3 {[%emt 0:00:09]} Bg7 {[%emt 0:00:06]} 4. e4 {[%emt 0:00:07]} d6 {[%emt 0:00:03]} 5. h3 {[%emt 0:00:10]} Nbd7 {[%emt 0:00:44]} 6. Bd3 {[%emt 0:00:10]} e5 {[%emt 0:00:57]} 7. d5 {[%emt 0:00:09]} Nc5 {[%emt 0:00:11]} 8. Bc2 {[%emt 0:00:08]} a5 {[%emt 0:00:14] White is slightly better.} 9. Be3 {[%emt 0:00:41]} b6 {[%emt 0:00:29]} 10. Nge2 {[%emt 0:01:50]} O-O {[%emt 0:03:58]} 11. g4 {[%emt 0:09:07]} h5 {[%emt 0:01:41]} 12. g5 {[%emt 0:11:15]} Nh7 {[%emt 0:01:54]} 13. Qd2 {[%emt 0:00:34]} f6 {[%emt 0:10:53]} 14. gxf6 {[%emt 0:00:36]} Bxf6 {[%emt 0:00:11]} 15. O-O-O {[%emt 0:00:38] aiming for Rdg1.} Ng5 $1 {[%emt 0:05:05]} 16. Ng1 {[%emt 0:10:18] Prevents Nf3} Qe7 {[%emt 0:03:32]} 17. f3 {[%emt 0:06:38]} Bd7 {[%emt 0:03:40]} 18. Qg2 {[%emt 0:14:10]} Kh7 {[%emt 0:04:12]} 19. Nge2 {[%emt 0:03:38]} Nf7 {[%emt 0:03:53]} 20. Rhg1 {[%emt 0:00:17]} Rg8 {[%emt 0:00:49]} 21. Kb1 {[%emt 0:02:05]} a4 {[%emt 0:10:16]} (21... Rg7 $142) 22. Rdf1 {[%emt 0:00:50]} ({Better is} 22. f4) 22... Qe8 {[%emt 0:12:22] Loses the game.} (22... Rg7 $16) 23. f4 $18 {[%emt 0:04:22][%cal Bf3f4,Bf4f5][%mdl 32]} Qe7 {[%emt 0:02:50]} (23... Rg7 $142 24. Qf3 Qe7) 24. Qf3 {[%emt 0:01:15] Black must now prevent f5.} Raf8 {[%emt 0:06:54]} 25. f5 {[%emt 0:03:13] [#] Threatens to win with fxg6+.} g5 {[%emt 0:07:12]} (25... Bg5 26. Bxc5 (26. f6 Bxf6 27. Qxf6 Qxf6 $18) 26... bxc5 27. fxg6+ (27. Nxa4 Bh4 $16) (27. Bxa4 Bxa4 28. Nxa4 h4 $18) 27... Rxg6 28. Bxa4 (28. Qxh5+ Rh6 $18) 28... Bxa4) 26. Qxh5+ {[%emt 0:03:09]} Nh6 {[%emt 0:00:15]} 27. Ng3 {[%emt 0:01:36]} a3 {[%emt 0:00:48]} 28. b4 {[%emt 0:01:20][%cal Bb2b4,Bb4b5][%mdl 32]} (28. bxa3 Be8 $18) 28... Na6 {[%emt 0:00:14]} 29. b5 {[%emt 0:00:10]} Nc5 {[%emt 0:00:29]} 30. Qe2 {[%emt 0:01:14]} Be8 {[%emt 0:02:13]} 31. Rg2 {[%emt 0:03:45]} ({Don't play} 31. Bc1 Rg7 32. Nd1 (32. Bxa3 Nb7 $18) 32... Rfg8 33. Bxa3 g4 $18) 31... g4 $2 {[%emt 0:01:36] [#]} (31... Rg7 32. Nd1 (32. Bc1 Rh8 $16) 32... Rh8) 32. hxg4 {[%emt 0:04:54]} Bg5 {[%emt 0:01:02]} 33. Rh2 {[%emt 0:01:01] Weighted Error Value: White=0.14 (very precise) /Black=0.31.  Mistake:       	White=1     	Black=5      Inaccurate:     	White=2     	Black=3      OK:         	White=12    	Black=6      Best:        	White=3     	Black=1      Strong:       	---       	Black=1} 1-0

[Event "9th Porticcio Open 2024"]
[Site "Porticcio"]
[Date "2024.07.01"]
[Round "3.4"]
[White "Bulmaga, Irina"]
[Black "Batsiashvili, Nino"]
[Result "1/2-1/2"]
[ECO "C45"]
[WhiteElo "2391"]
[BlackElo "2450"]
[Annotator "TA"]
[PlyCount "46"]
[EventDate "2024.07.01"]
[EventType "swiss"]
[EventCountry "FRA"]
[SourceTitle "playchess.com"]
[Source "ChessBase"]
[SourceQuality "1"]
[TimeControl "5400+30"]

{[%evp 17,46,-12,-10,-7,0,0,-7,0,0,-20,-38,-28,0,0,0,0,0,0,0,0,0,0,0,0,0,0,0,0,0,0,0]} 1. e4 {[%emt 0:00:05]} e5 {[%emt 0:00:20]} 2. Nf3 {[%emt 0:00:08]} Nc6 {[%emt 0:00:04]} 3. d4 {[%emt 0:00:13]} exd4 {[%emt 0:00:15]} 4. Nxd4 {[%emt 0:00:08]} Nf6 {[%emt 0:01:31][%cal Bg8f6,Bf6d5,Bd5b4][%mdl 32]} 5. Nxc6 {[%emt 0:01:35]} bxc6 {[%emt 0:00:07]} 6. e5 {[%emt 0:01:11]} Qe7 {[%emt 0:00:36]} 7. Qe2 {[%emt 0:00:11]} Nd5 {[%emt 0:00:14]} 8. c4 {[%emt 0:00:48]} Ba6 {[%emt 0:11:00]} 9. b3 {[%emt 0:01:30]} g6 {[%emt 0:00:08]} 10. Ba3 {[%emt 0:01:35]} Nb4 {[%emt 0:00:28] With the idea ...d5.} 11. Bb2 $1 {[%emt 0:00:38][%cal Oe5e6]} Bg7 {[%emt 0:00:36]} 12. a3 {[%emt 0:00:44]} Nd5 {[%emt 0:00:31]} 13. Nd2 {[%emt 0:00:39][%cal Bb1d2,Bd2e4,Be4f6][%mdl 32]} O-O {[%emt 0:03:14]} 14. O-O-O {[%emt 0:01:13]} Rfe8 {[%emt 0:01:19]} 15. Qf3 {[%emt 0:04:54] Prevents Nf4. The position is equal.} Nb6 {[%emt 0:00:33]} 16. Ne4 $1 {[%emt 0:01:02]} Bxe5 {[%emt 0:02:19]} 17. Bxe5 {[%emt 0:01:29]} Qxe5 {[%emt 0:00:04]} 18. Nf6+ {[%emt 0:00:33]} Kf8 {[%emt 0:00:54] [#] White must now prevent ...Qa1+.} 19. Nxe8 {[%emt 0:01:37]} (19. Nxh7+ Kg7 20. h4 Kxh7 $19) 19... Qa1+ {[%emt 0:00:20]} 20. Kc2 $1 {[%emt 0:00:21]} Qa2+ {[%emt 0:00:10]} 21. Kc1 $1 {[%emt 0:00:24]} Qa1+ {[%emt 0:00:36]} 22. Kc2 $1 {[%emt 0:00:13]} Qa2+ {[%emt 0:00:07]} 23. Kc1 $1 {[%emt 0:00:17]} Qa1+ {[%emt 0:00:06] Not much happened in this game.   Weighted Error Value: White=0.00 (flawless) /Black=0.03 (flawless) .  Inaccurate:     	---       	Black=1      OK:         	White=3     	Black=9      Best:        	White=3     	Black=1      Strong:       	White=6     	---} 1/2-1/2

[Event "9th Porticcio Open 2024"]
[Site "Porticcio"]
[Date "2024.07.01"]
[Round "3.5"]
[White "Rakotomaharo, Fy Antenaina"]
[Black "Kuru, Atilla"]
[Result "1-0"]
[ECO "B31"]
[WhiteElo "2448"]
[BlackElo "2314"]
[Annotator "TA"]
[PlyCount "95"]
[EventDate "2024.07.01"]
[EventType "swiss"]
[EventCountry "FRA"]
[SourceTitle "playchess.com"]
[Source "ChessBase"]
[SourceQuality "1"]
[TimeControl "5400+30"]

{[%evp 9,95,0,0,0,0,0,0,-7,16,13,8,10,43,52,77,68,111,75,96,90,103,104,164,165,168,164,166,164,188,188,193,189,196,193,202,195,211,189,211,185,222,196,187,185,236,193,254,185,238,212,247,244,253,245,280,254,325,329,335,323,304,279,356,375,509,486,507,499,712,786,1089,941,1717,1812,29980,29981,29972,3872,29985,29986,29987,29988,29990,29989,29991,29983,29994,29994]} 1. e4 {[%emt 0:05:01]} c5 {[%emt 0:00:05]} 2. a4 {[%emt 0:00:23]} e6 {[%emt 0:02:02]} 3. g3 {[%emt 0:00:29]} d5 {[%emt 0:00:17]} 4. exd5 {[%emt 0:01:59]} exd5 {[%emt 0:00:08]} 5. Bg2 {[%emt 0:00:04]} Nf6 {[%emt 0:00:17]} 6. Ne2 {[%emt 0:00:04]} Be7 {[%emt 0:01:08]} 7. O-O {[%emt 0:00:22]} O-O {[%emt 0:02:23]} 8. d4 {[%emt 0:00:15] The position is equal.} Bg4 {[%emt 0:00:22]} 9. dxc5 {[%emt 0:09:24]} Bxc5 {[%emt 0:01:12]} 10. h3 {[%emt 0:00:09]} Bxe2 {[%emt 0:04:28]} 11. Qxe2 {[%emt 0:00:07]} Nbd7 {[%emt 0:06:23]} 12. Nc3 {[%emt 0:07:21]} Qa5 {[%emt 0:15:12]} 13. Bd2 {[%emt 0:27:37]} (13. Bxd5 $6 Nxd5 14. Nxd5 Bxf2+ 15. Rxf2 Qxd5 $11) 13... Bb4 {[%emt 0:01:03]} 14. Rfd1 {[%emt 0:01:14][%cal Oc3d5]} Nb6 {[%emt 0:03:01]} 15. Qb5 {[%emt 0:08:12] aiming for Qxa5.} Nc4 {[%emt 0:06:49]} (15... Rfd8 $16) 16. Nxd5 $18 {[%emt 0:17:53]} (16. Qxb7 $2 Rab8 (16... Nxb2 17. Nxd5 Nxd5 18. Bxd5 $11) 17. Qc6 Ne5 $19 (17... Nxb2 $2 18. Nxd5 Bxd2 19. Nxf6+ gxf6 20. Rf1 $19) (17... Nxb2 $2 18. Rdb1 $19)) 16... Qxb5 {[%emt 0:01:48]} (16... Nxd2 $2 17. Nxb4 (17. Qxb4 Qxb4 18. Nxb4 Nde4 $18) 17... Qxb5 18. axb5 $18) 17. axb5 {[%emt 0:00:03]} Nxd5 {[%emt 0:04:41]} 18. Bxd5 {[%emt 0:01:14]} Nxd2 {[%emt 0:00:09]} 19. c3 $1 {[%emt 0:00:06]} (19. Bxb7 Rab8 20. Bc6 Nc4 $15) 19... Be7 {[%emt 0:09:17]} 20. Rxd2 {[%emt 0:00:18]} Rfd8 {[%emt 0:00:53] [#]} 21. Rdd1 $1 {[%emt 0:02:34]} (21. Bxb7 Rxd2 22. Bxa8 Rxb2 $16) 21... Rab8 {[%emt 0:05:22]} 22. Rxa7 {[%emt 0:00:58]} Bc5 {[%emt 0:00:06]} 23. Raa1 {[%emt 0:02:36]} ({Stronger than} 23. Rxb7 Rxb7 24. Bxf7+ Kxf7 $15) 23... Kf8 {[%emt 0:00:10]} 24. Bf3 {[%emt 0:03:42]} Ke7 {[%emt 0:01:21]} 25. Kf1 {[%emt 0:00:10]} Rxd1+ {[%emt 0:02:26]} 26. Rxd1 {[%emt 0:00:06][%mdl 4096] Endgame. KRB-KRB} (26. Bxd1 Rd8 27. Be2 Kd7 $16) 26... g6 {[%emt 0:00:36]} (26... Bd6 $142 27. Bd5 Be5) 27. Ke2 {[%emt 0:01:49]} f5 {[%emt 0:00:23]} (27... b6 $142 28. Bc6 h6 29. Rd7+ Ke6) 28. Rd2 {[%emt 0:03:22]} Ke6 {[%emt 0:01:01]} (28... Bd6 $142 29. Kd3 Kf7) 29. Kd1 {[%emt 0:00:14]} h5 {[%emt 0:00:38]} 30. Kc2 {[%emt 0:00:24]} b6 {[%emt 0:01:05]} 31. b4 {[%emt 0:03:26]} Bd6 {[%emt 0:00:26]} 32. Bd5+ {[%emt 0:00:07]} Kf6 {[%emt 0:01:17]} 33. Re2 {[%emt 0:00:05] Strongly threatening Re6+.} Rd8 {[%emt 0:00:05]} 34. Re6+ {[%emt 0:00:12]} Kg7 {[%emt 0:00:12]} 35. c4 {[%emt 0:00:31]} g5 {[%emt 0:00:40]} 36. Kc3 {[%emt 0:03:46]} f4 {[%emt 0:00:40]} 37. g4 {[%emt 0:02:43]} hxg4 {[%emt 0:00:27]} 38. hxg4 {[%emt 0:00:00]} Rd7 {[%emt 0:01:33]} (38... f3 $142 39. Bxf3 (39. Kd4 Bg3 $18) 39... Kf8) 39. f3 {[%emt 0:00:00]} Kf8 {[%emt 0:02:15]} 40. Kd4 {[%emt 0:00:00]} Bxb4 {[%emt 0:00:37]} 41. Rxb6 {[%emt 0:00:00]} Ke7 {[%emt 0:00:32]} 42. Re6+ {[%emt 0:00:00]} Kd8 {[%emt 0:00:07]} 43. b6 {[%emt 0:00:00]} (43. c5 $142 Ra7 44. Kc4 Ba5 45. b6 Rh7 46. Kb5 Bxb6 47. cxb6 Rh2 48. Bc6) 43... Bd2 {[%emt 0:01:10]} 44. c5 {[%emt 0:00:38][%cal Bc4c5,Bc5c6,Bc6c7][%mdl 32] White mates.} Be3+ {[%emt 0:00:09]} 45. Kc4 {[%emt 0:00:02]} Bf2 {[%emt 0:00:49]} 46. c6 {[%emt 0:00:47]} Rh7 {[%emt 0:00:17]} 47. c7+ {[%emt 0:00:20]} Kd7 {[%emt 0:00:05] [#]} 48. Re8 $3 {[%emt 0:00:40][%mdl 512] Black did not feel at home in the position after the opening.   Weighted Error Value: White=0.11 (very precise) /Black=0.56.  Mistake:       	---       	Black=5      Inaccurate:     	White=1     	Black=4      OK:         	White=13    	Black=10     Best:        	White=3     	---        Strong:       	White=1     	---} 1-0

[Event "9th Porticcio Open 2024"]
[Site "Porticcio"]
[Date "2024.07.01"]
[Round "3.6"]
[White "Roux, Baptiste"]
[Black "Clarke, Brandon G I"]
[Result "1/2-1/2"]
[ECO "B78"]
[WhiteElo "2352"]
[BlackElo "2498"]
[Annotator "TA"]
[PlyCount "93"]
[EventDate "2024.07.01"]
[EventType "swiss"]
[EventCountry "FRA"]
[SourceTitle "playchess.com"]
[Source "ChessBase"]
[SourceQuality "1"]
[TimeControl "5400+30"]

{[%evp 50,93,-269,-262,-262,-270,-64,-82,-79,-243,-244,-249,-240,-231,-204,-321,-317,-462,-482,-441,-207,-189,0,-8,-8,-321,-317,-995,0,0,0,0,0,0,0,0,0,0,0,0,0,0,0,0,0,0]} 1. e4 {[%emt 0:05:25]} c5 {[%emt 0:00:14]} 2. Nf3 {[%emt 0:00:18]} d6 {[%emt 0:00:27]} 3. d4 {[%emt 0:00:10]} cxd4 {[%emt 0:00:11]} 4. Nxd4 {[%emt 0:00:06]} Nf6 {[%emt 0:00:06]} 5. Nc3 {[%emt 0:00:06]} g6 {[%emt 0:02:10]} 6. Be3 {[%emt 0:00:12]} Bg7 {[%emt 0:00:09]} 7. f3 {[%emt 0:00:05]} O-O {[%emt 0:00:26]} 8. Qd2 {[%emt 0:00:18]} Nc6 {[%emt 0:00:06]} 9. Bc4 {[%emt 0:01:01]} Bd7 {[%emt 0:00:35]} 10. h4 {[%emt 0:00:08]} h5 {[%emt 0:01:04]} 11. O-O-O {[%emt 0:00:17]} Rc8 {[%emt 0:00:29]} 12. Bb3 {[%emt 0:00:07]} Ne5 {[%emt 0:00:36]} 13. Bg5 {[%emt 0:00:08]} Rc5 {[%emt 0:00:52]} 14. Kb1 {[%emt 0:00:05]} b5 {[%emt 0:00:38]} 15. g4 {[%emt 0:00:30]} a5 {[%emt 0:02:54]} 16. gxh5 {[%emt 0:02:54]} a4 {[%emt 0:00:56]} 17. h6 {[%emt 0:00:38]} Bh8 {[%emt 0:00:15]} 18. h7+ {[%emt 0:00:13]} Nxh7 {[%emt 0:00:26]} 19. Bd5 {[%emt 0:00:43]} b4 {[%emt 0:01:44]} 20. Nce2 {[%emt 0:01:32]} Qe8 {[%emt 0:03:53]} 21. f4 {[%emt 0:27:50]} Ng4 {[%emt 0:10:55]} 22. Rdg1 {[%emt 0:10:49]} Nf2 {[%emt 0:22:32]} 23. Rh2 {[%emt 0:10:35]} e6 {[%emt 0:01:00]} 24. Rxf2 {[%emt 0:05:29]} exd5 {[%emt 0:00:06]} 25. Nf5 {[%emt 0:03:04]} Bxf5 {[%emt 0:01:40]} (25... gxf5 $2 $18) 26. exf5 {[%emt 0:00:06]} b3 $1 {[%emt 0:01:07]} 27. Nc3 {[%emt 0:16:34]} (27. axb3 axb3 28. Rc1 Nxg5 29. hxg5 gxf5) (27. cxb3 $2 Qe4+ 28. Ka1 a3 $19) 27... bxc2+ $2 {[%emt 0:17:00]} (27... gxf5 $2 28. Bf6+ $18 (28. cxb3 Nxg5 29. Rxg5+ Kh7 $18) (28. Nxd5 bxc2+ $18) (28. axb3 Nxg5 29. Rxg5+ Kh7 $18) (28. cxb3 Nxg5 29. Rxg5+ Kh7 $18) (28. Nxd5 bxc2+ $18) (28. axb3 Nxg5 29. Rxg5+ Kh7 $18)) (27... Nxg5 $19 28. hxg5 d4 (28... gxf5 29. Rh2 $11)) 28. Qxc2 $15 {[%emt 0:00:24]} Nxg5 {[%emt 0:08:00]} 29. fxg6 $2 {[%emt 0:03:41]} (29. hxg5 $17 {is the only way for White.} Bd4 (29... Bxc3 30. bxc3 Rc4 31. Rh1 $11) 30. Re2) 29... fxg6 {[%emt 0:10:12]} (29... Ne4 30. g7 Nxc3+ (30... Nxf2 $2 31. Qxf2 Qd7 32. Qd4 $18) (30... Bxg7 31. Rfg2 $11) 31. bxc3 $15) 30. fxg5 {[%emt 0:01:34]} (30. hxg5 d4 (30... Bxc3 31. bxc3 Kg7 32. f5 $17) 31. Re2 Qf7 $19) 30... Rxf2 {[%emt 0:05:41]} 31. Qxf2 {[%emt 0:00:02]} a3 $1 {[%emt 0:02:53]} (31... Bxc3 32. bxc3 Rc4 (32... Rxc3 33. Re1 $17) 33. Qf3 $11) 32. Re1 {[%emt 0:01:37] [#]} (32. Qe2 $142 Be5 (32... Qxe2 $2 33. Nxe2 axb2 34. Rd1 $19) 33. Rc1) 32... Be5 $1 $19 {[%emt 0:00:26]} 33. Qf3 {[%emt 0:04:20]} (33. Qd2 {was called for.} Qf7 34. Qd3 axb2 35. Na4 Rc1+ 36. Rxc1 bxc1=B (36... bxc1=N $2 37. Kxc1 Qf4+ 38. Kb1 $19) 37. Kxc1 Qf4+ 38. Kb1 Qxa4 39. Qxg6+ Kf8 40. Qh6+ Ke7 41. Qh7+ Kd8 42. Qg8+ Kc7 43. Qf7+ Kb6 44. Qxd5) 33... Qb8 $19 {[%emt 0:02:34]} 34. Na4 {[%emt 0:00:02]} Ra5 {[%emt 0:04:08]} (34... Qb4 $142 35. Rf1 Bg7 (35... Qxa4 36. Qf8+ Kh7 37. Qh6+ Kg8 38. Rf8#) 36. Qxa3 Qc4 (36... Qxh4 $2 37. Nxc5 Qxg5 38. Qa8+ Kh7 39. Rh1+ $18) 37. Nxc5 Qxf1+ 38. Kc2 Qe2+ (38... dxc5 $2 39. Qa8+ Kh7 40. Qxd5 $19) 39. Kc1 dxc5 40. Qa8+ Kh7 41. Qxd5 Bxb2+ (41... Qxb2+ $2 42. Kd1 $19) 42. Kb1 Bg7) 35. Qb3 {[%emt 0:01:32] [#]} (35. Qxa3 $2 Rxa4 36. Qb3 Qxb3 37. axb3 Rxh4 $19) 35... Rb5 $2 {[%emt 0:01:01]} (35... Qe8 $1 $19 {[%cal Re8a4]} 36. Nc3 Qf7) 36. Qxa3 $11 {[%emt 0:00:16]} Rb4 {[%emt 0:00:31]} (36... Qa7 $5 37. Qd3 $8 Qxa4 38. Qxg6+ Kh8 39. Qh6+ Kg8 40. Qg6+ Kh8 41. Qh5+ Kg8 (41... Kg7 42. Qh6+ Kg8 43. Qg6+ $11) 42. Qe8+ Kg7 43. Qd7+ Kg8 44. Qe6+ Kg7 45. Qd7+ Kh8 46. Qd8+ Kg7 47. Qe7+ Kg8 48. Qe8+ Kg7 49. Qe7+ Kg8 50. Qe6+ Kg7 51. Qd7+ $11) 37. b3 $2 {[%emt 0:01:33][%mdl 8192]} (37. Nc3 $11 {and White is okay.}) 37... Rxh4 $19 {[%emt 0:00:30]} 38. Nb2 $2 {[%emt 0:00:24]} (38. Nc5 dxc5 39. Qxc5) 38... Rd4 $2 {[%emt 0:00:28]} (38... Qc8 $19 39. Nd3 Qc3) 39. Qa6 $11 {[%emt 0:00:49]} Qf8 {[%emt 0:00:31]} 40. Rxe5 {[%emt 0:01:57]} ({But not} 40. Nd3 Bg7 $15) 40... dxe5 {[%emt 0:00:22]} 41. Qxg6+ {[%emt 0:00:02]} Kh8 {[%emt 0:00:22]} (41... Qg7 $5 42. Qe8+ $8 Qf8 43. Qg6+ (43. Qxf8+ $2 Kxf8 44. Kc2 Rg4 $19) 43... Qg7 44. Qe8+ Kh7 45. Qh5+ Kg8 46. Qe8+ $11) 42. Qh5+ {[%emt 0:00:32]} Kg7 {[%emt 0:00:28]} 43. Qh6+ {[%emt 0:00:07]} Kg8 {[%emt 0:00:48]} 44. Qg6+ {[%emt 0:00:06]} Kh8 {[%emt 0:00:15]} (44... Qg7 $5 45. Qe8+ $8 Qf8 46. Qg6+ $11 (46. Qxf8+ $2 Kxf8 47. Kc2 Rg4 $19)) 45. Qh5+ {[%emt 0:00:18]} Kg8 {[%emt 0:00:16]} 46. Qg6+ {[%emt 0:00:07]} Kh8 {[%emt 0:01:33]} 47. Qh5+ 1/2-1/2